[Event "Titled Tuesday Blitz August 17 2021"]
[White "Maze, Sebastien"]
[Black "Waddingham, Graham A"]
[WhiteFideId "613762"]
[BlackFideId "400653"]
[WhiteElo "2462"]
[BlackElo "2330"]
[Result "1-0"]
[Round "02"]
[TimeControl "180+1"]
[Date "2021.08.18"]
[WhiteClock "0:00:11"]
[BlackClock "0:00:11"]

1. e4 {[%clk 0:03:00]}  e5 {[%clk 0:02:59]} 2. Nf3 {[%clk 0:02:59]}  Nc6 {[%clk 0:02:59]} 3. Bb5 {[%clk 0:02:56]}  a6 {[%clk 0:02:59]} 4. Bxc6 {[%clk 0:02:55]}  dxc6 {[%clk 0:02:59]} 5. O-O {[%clk 0:02:56]}  Bd6 {[%clk 0:02:58]} 6. d3 {[%clk 0:02:43]}  Qf6 {[%clk 0:02:54]} 7. Nbd2 {[%clk 0:02:42]}  Ne7 {[%clk 0:02:51]} 8. Nc4 {[%clk 0:02:41]}  h6 {[%clk 0:02:48]} 9. Ne1 {[%clk 0:02:37]}  Be6 {[%clk 0:02:40]} 10. Nxd6+ {[%clk 0:02:37]}  cxd6 {[%clk 0:02:40]} 11. f4 {[%clk 0:02:38]}  exf4 {[%clk 0:02:37]} 12. Bxf4 {[%clk 0:02:39]}  Ng6 {[%clk 0:02:29]} 13. Be3 {[%clk 0:02:31]}  Qe7 {[%clk 0:02:20]} 14. a4 {[%clk 0:02:25]}  O-O {[%clk 0:02:18]} 15. Qh5 {[%clk 0:02:19]}  d5 {[%clk 0:01:52]} 16. e5 {[%clk 0:02:14]}  Qb4 {[%clk 0:01:47]} 17. d4 {[%clk 0:01:34]}  b5 {[%clk 0:01:33]} 18. Nf3 {[%clk 0:01:12]}  Qxb2 {[%clk 0:01:29]} 19. Bxh6 {[%clk 0:01:09]}  Qxc2 {[%clk 0:00:53]} 20. Rac1 {[%clk 0:01:01]}  Qf5 {[%clk 0:00:41]} 21. Bg5 {[%clk 0:00:49]}  Qg4 {[%clk 0:00:41]} 22. Qxg4 {[%clk 0:00:46]}  Bxg4 {[%clk 0:00:42]} 23. a5 {[%clk 0:00:46]}  Rac8 {[%clk 0:00:38]} 24. Nd2 {[%clk 0:00:45]}  f6 {[%clk 0:00:36]} 25. exf6 {[%clk 0:00:44]}  gxf6 {[%clk 0:00:36]} 26. Rxf6 {[%clk 0:00:42]}  Rxf6 {[%clk 0:00:36]} 27. Bxf6 {[%clk 0:00:42]}  Nf4 {[%clk 0:00:35]} 28. Re1 {[%clk 0:00:37]}  Rf8 {[%clk 0:00:33]} 29. Bh4 {[%clk 0:00:28]}  Ne2+ {[%clk 0:00:32]} 30. Kh1 {[%clk 0:00:28]}  Nxd4 {[%clk 0:00:33]} 31. h3 {[%clk 0:00:28]}  Bh5 {[%clk 0:00:30]} 32. Re5 {[%clk 0:00:22]}  Bg6 {[%clk 0:00:28]} 33. Kg1 {[%clk 0:00:18]}  Kg7 {[%clk 0:00:27]} 34. Bf2 {[%clk 0:00:18]}  Nf5 {[%clk 0:00:26]} 35. Nf3 {[%clk 0:00:16]}  Re8 {[%clk 0:00:26]} 36. g4 {[%clk 0:00:13]}  Rxe5 {[%clk 0:00:23]} 37. Nxe5 {[%clk 0:00:13]}  Nd6 {[%clk 0:00:20]} 38. Nxc6 {[%clk 0:00:13]}  Nc4 {[%clk 0:00:21]} 39. Be1 {[%clk 0:00:12]}  Be4 {[%clk 0:00:18]} 40. Nb4 {[%clk 0:00:12]}  d4 {[%clk 0:00:18]} 41. Nxa6 {[%clk 0:00:09]}  d3 {[%clk 0:00:18]} 42. Nc5 {[%clk 0:00:06]}  Ba8 {[%clk 0:00:15]} 43. Nb3 {[%clk 0:00:06]}  Kg6 {[%clk 0:00:12]} 44. h4 {[%clk 0:00:06]}  Bf3 {[%clk 0:00:11]} 45. g5 {[%clk 0:00:03]}  Bd1 {[%clk 0:00:11]} 46. Nd2 {[%clk 0:00:02]}  Nxd2 {[%clk 0:00:09]} 47. Bxd2 {[%clk 0:00:03]}  Bf3 {[%clk 0:00:10]} 48. Kf2 {[%clk 0:00:03]}  Ba8 {[%clk 0:00:09]} 49. Kg3 {[%clk 0:00:04]}  Kh5 {[%clk 0:00:08]} 50. a6 {[%clk 0:00:04]}  Kg6 {[%clk 0:00:08]} 51. a7 {[%clk 0:00:05]}  Bb7 {[%clk 0:00:07]} 52. Be1 {[%clk 0:00:04]}  Bc6 {[%clk 0:00:07]} 53. Kf4 {[%clk 0:00:04]}  Bb7 {[%clk 0:00:06]} 54. Ke3 {[%clk 0:00:05]}  Kh5 {[%clk 0:00:06]} 55. Kxd3 {[%clk 0:00:05]}  b4 {[%clk 0:00:07]} 56. Kc4 {[%clk 0:00:02]}  Bd5+ {[%clk 0:00:05]} 57. Kxb4 {[%clk 0:00:02]}  Kg6 {[%clk 0:00:04]} 58. Kc5 {[%clk 0:00:03]}  Bg2 {[%clk 0:00:04]} 59. Kd6 {[%clk 0:00:04]}  Bh1 {[%clk 0:00:03]} 60. Kc7 {[%clk 0:00:04]}  Bg2 {[%clk 0:00:04]} 61. Kb8 {[%clk 0:00:05]}  Be4 {[%clk 0:00:04]} 62. a8=Q {[%clk 0:00:06]}  Bxa8 {[%clk 0:00:04]} 63. Kxa8 {[%clk 0:00:06]}  Kh5 {[%clk 0:00:05]} 64. Kb7 {[%clk 0:00:07]}  Kg6 {[%clk 0:00:06]} 65. Kc6 {[%clk 0:00:08]}  Kh5 {[%clk 0:00:06]} 66. Kd5 {[%clk 0:00:08]}  Kg6 {[%clk 0:00:07]} 67. Ke4 {[%clk 0:00:09]}  Kh5 {[%clk 0:00:08]} 68. Kf4 {[%clk 0:00:09]}  Kg6 {[%clk 0:00:09]} 69. Kg4 {[%clk 0:00:10]}  Kh7 {[%clk 0:00:09]} 70. h5 {[%clk 0:00:11]}  Kg7 {[%clk 0:00:10]} 71. Bc3+ {[%clk 0:00:11]}  Kh7 {[%clk 0:00:11]} 72. g6+ {[%clk 0:00:12]}  Kg8 {[%clk 0:00:12]} 73. h6 {[%clk 0:00:11]}  Kf8 {[%clk 0:00:11]} 74. h7 {[%clk 0:00:11]} 1-0


[Site "https://www.chess.com"]

[Event "Titled Tuesday Blitz August 17 2021"]
[White "Mitrabha, Guha"]
[Black "Shlyakhetsky, Vladimir"]
[WhiteFideId "5057000"]
[BlackFideId "2805928"]
[WhiteElo "2334"]
[BlackElo "2168"]
[Result "1-0"]
[Round "02"]
[TimeControl "180+1"]
[Date "2021.08.18"]
[WhiteClock "0:01:46"]
[BlackClock "0:00:04"]

1. Nf3 {[%clk 0:02:52]}  e6 {[%clk 0:02:59]} 2. c4 {[%clk 0:02:52]}  d5 {[%clk 0:02:58]} 3. d4 {[%clk 0:02:52]}  c6 {[%clk 0:02:57]} 4. Nbd2 {[%clk 0:02:51]}  f5 {[%clk 0:02:57]} 5. g3 {[%clk 0:02:50]}  Nf6 {[%clk 0:02:57]} 6. Bg2 {[%clk 0:02:50]}  Be7 {[%clk 0:02:58]} 7. O-O {[%clk 0:02:51]}  O-O {[%clk 0:02:58]} 8. Ne5 {[%clk 0:02:52]}  Nbd7 {[%clk 0:02:58]} 9. Ndf3 {[%clk 0:02:52]}  Nxe5 {[%clk 0:02:58]} 10. Nxe5 {[%clk 0:02:53]}  Nd7 {[%clk 0:02:59]} 11. Bf4 {[%clk 0:02:53]}  Nxe5 {[%clk 0:02:59]} 12. Bxe5 {[%clk 0:02:54]}  Bd7 {[%clk 0:02:59]} 13. Rc1 {[%clk 0:02:53]}  b5 {[%clk 0:02:57]} 14. cxb5 {[%clk 0:02:53]}  cxb5 {[%clk 0:02:56]} 15. Qb3 {[%clk 0:02:51]}  Rc8 {[%clk 0:02:44]} 16. Qe3 {[%clk 0:02:38]}  Qb6 {[%clk 0:02:36]} 17. Bf4 {[%clk 0:02:27]}  Bf6 {[%clk 0:02:29]} 18. Be5 {[%clk 0:02:27]}  Bxe5 {[%clk 0:02:18]} 19. Qxe5 {[%clk 0:02:28]}  Rxc1 {[%clk 0:02:18]} 20. Rxc1 {[%clk 0:02:27]}  Rc8 {[%clk 0:02:18]} 21. Rxc8+ {[%clk 0:02:21]}  Bxc8 {[%clk 0:02:17]} 22. Bf3 {[%clk 0:02:22]}  Bd7 {[%clk 0:02:03]} 23. h4 {[%clk 0:02:20]}  Kf7 {[%clk 0:01:55]} 24. Bh5+ {[%clk 0:02:20]}  Kg8 {[%clk 0:01:40]} 25. Kg2 {[%clk 0:02:19]}  g6 {[%clk 0:01:13]} 26. Bf3 {[%clk 0:02:13]}  h5 {[%clk 0:00:55]} 27. Qf6 {[%clk 0:02:06]}  Be8 {[%clk 0:00:54]} 28. Qe7 {[%clk 0:02:05]}  Bf7 {[%clk 0:00:52]} 29. e3 {[%clk 0:02:05]}  Qa5 {[%clk 0:00:47]} 30. a3 {[%clk 0:02:03]}  a6 {[%clk 0:00:37]} 31. Qd6 {[%clk 0:01:57]}  Qd2 {[%clk 0:00:29]} 32. b4 {[%clk 0:01:56]}  Qc2 {[%clk 0:00:13]} 33. Qxa6 {[%clk 0:01:56]}  Qa4 {[%clk 0:00:08]} 34. Qxa4 {[%clk 0:01:51]}  bxa4 {[%clk 0:00:09]} 35. Be2 {[%clk 0:01:50]}  Be8 {[%clk 0:00:08]} 36. Ba6 {[%clk 0:01:46]}  Kf8 {[%clk 0:00:07]} 37. b5 {[%clk 0:01:46]}  Ke7 {[%clk 0:00:07]} 38. b6 {[%clk 0:01:46]}  Kd6 {[%clk 0:00:07]} 39. Bc8 {[%clk 0:01:46]}  Bf7 {[%clk 0:00:04]} 40. Kf3 {[%clk 0:01:46]}  Kc6 {[%clk 0:00:03]} 41. b7 {[%clk 0:01:45]}  Kc7 {[%clk 0:00:04]} 42. Kf4 {[%clk 0:01:46]} 1-0


[Site "https://www.chess.com"]

[Event "Titled Tuesday Blitz August 17 2021"]
[White "Mitusov, Semen"]
[Black "Dang, Hoang Son"]
[WhiteFideId "14151049"]
[BlackFideId "12402435"]
[WhiteElo "2256"]
[BlackElo "2248"]
[Result "0-1"]
[Round "02"]
[TimeControl "180+1"]
[Date "2021.08.17"]
[WhiteClock "0:00:20"]
[BlackClock "0:00:27"]

1. e4 {[%clk 0:03:00]}  g6 {[%clk 0:02:59]} 2. d4 {[%clk 0:03:00]}  Bg7 {[%clk 0:02:59]} 3. Nc3 {[%clk 0:03:00]}  a6 {[%clk 0:02:59]} 4. Be3 {[%clk 0:02:59]}  d6 {[%clk 0:02:59]} 5. f3 {[%clk 0:02:55]}  Nd7 {[%clk 0:02:59]} 6. Qd2 {[%clk 0:02:54]}  b5 {[%clk 0:02:59]} 7. O-O-O {[%clk 0:02:53]}  Nb6 {[%clk 0:02:57]} 8. h4 {[%clk 0:02:50]}  h6 {[%clk 0:02:56]} 9. Nh3 {[%clk 0:02:47]}  Nf6 {[%clk 0:02:54]} 10. g4 {[%clk 0:02:44]}  Bb7 {[%clk 0:02:53]} 11. Nf4 {[%clk 0:02:35]}  Nfd7 {[%clk 0:02:52]} 12. h5 {[%clk 0:02:25]}  g5 {[%clk 0:02:52]} 13. Nfd5 {[%clk 0:02:25]}  e6 {[%clk 0:02:33]} 14. Nxb6 {[%clk 0:02:23]}  Nxb6 {[%clk 0:02:33]} 15. d5 {[%clk 0:02:14]}  b4 {[%clk 0:02:33]} 16. Nb1 {[%clk 0:02:00]}  O-O {[%clk 0:02:23]} 17. Bd4 {[%clk 0:01:56]}  exd5 {[%clk 0:02:16]} 18. Bxg7 {[%clk 0:01:49]}  Kxg7 {[%clk 0:02:17]} 19. Qxb4 {[%clk 0:01:43]}  c5 {[%clk 0:02:04]} 20. Qd2 {[%clk 0:01:33]}  d4 {[%clk 0:02:04]} 21. c3 {[%clk 0:01:32]}  Rc8 {[%clk 0:02:00]} 22. Na3 {[%clk 0:01:28]}  d5 {[%clk 0:01:44]} 23. cxd4 {[%clk 0:01:25]}  cxd4+ {[%clk 0:01:39]} 24. Kb1 {[%clk 0:01:25]}  dxe4 {[%clk 0:01:39]} 25. Qxd4+ {[%clk 0:01:17]}  Qxd4 {[%clk 0:01:38]} 26. Rxd4 {[%clk 0:01:18]}  exf3 {[%clk 0:01:29]} 27. Bd3 {[%clk 0:00:57]}  Rfd8 {[%clk 0:01:24]} 28. Nc2 {[%clk 0:00:56]}  Nd5 {[%clk 0:00:43]} 29. Be4 {[%clk 0:00:48]}  f2 {[%clk 0:00:35]} 30. Bxd5 {[%clk 0:00:33]}  Rxd5 {[%clk 0:00:31]} 31. Rxd5 {[%clk 0:00:33]}  Bxd5 {[%clk 0:00:32]} 32. Rf1 {[%clk 0:00:33]}  Bxa2+ {[%clk 0:00:26]} 33. Kc1 {[%clk 0:00:24]}  Bb3 {[%clk 0:00:26]} 34. Rxf2 {[%clk 0:00:25]}  f5 {[%clk 0:00:26]} 35. gxf5 {[%clk 0:00:24]}  g4 {[%clk 0:00:27]} 36. f6+ {[%clk 0:00:20]}  Kf7 {[%clk 0:00:27]} 0-1


[Site "https://www.chess.com"]

[Event "Titled Tuesday Blitz August 17 2021"]
[White "Mogirzan, Matei-Valeriu"]
[Black "Quintiliano Pinto, Renato R."]
[WhiteFideId "1257455"]
[BlackFideId "2117568"]
[WhiteElo "1733"]
[BlackElo "2439"]
[Result "0-1"]
[Round "02"]
[TimeControl "180+1"]
[Date "2021.08.18"]
[WhiteClock "0:00:05"]
[BlackClock "0:00:26"]

1. e4 {[%clk 0:03:00]}  c5 {[%clk 0:02:59]} 2. Nf3 {[%clk 0:02:59]}  d6 {[%clk 0:02:59]} 3. d4 {[%clk 0:02:59]}  cxd4 {[%clk 0:03:00]} 4. Nxd4 {[%clk 0:03:00]}  Nf6 {[%clk 0:03:00]} 5. Nc3 {[%clk 0:03:00]}  a6 {[%clk 0:03:01]} 6. Bg5 {[%clk 0:03:00]}  e6 {[%clk 0:03:01]} 7. f4 {[%clk 0:02:59]}  h6 {[%clk 0:03:01]} 8. Bh4 {[%clk 0:02:58]}  Qb6 {[%clk 0:03:01]} 9. Qd2 {[%clk 0:02:50]}  Qxb2 {[%clk 0:03:00]} 10. Rb1 {[%clk 0:02:48]}  Qa3 {[%clk 0:03:00]} 11. e5 {[%clk 0:02:44]}  dxe5 {[%clk 0:03:01]} 12. fxe5 {[%clk 0:02:45]}  Nfd7 {[%clk 0:03:01]} 13. Ne4 {[%clk 0:02:43]}  Qxa2 {[%clk 0:03:01]} 14. Rb3 {[%clk 0:02:36]}  Qa1+ {[%clk 0:02:41]} 15. Kf2 {[%clk 0:02:35]}  Qa4 {[%clk 0:01:44]} 16. Be2 {[%clk 0:01:40]}  Nc6 {[%clk 0:01:35]} 17. Nxe6 {[%clk 0:01:31]}  g5 {[%clk 0:01:11]} 18. Nc7+ {[%clk 0:00:43]}  Kd8 {[%clk 0:01:07]} 19. Nxa8 {[%clk 0:00:43]}  Qxe4 {[%clk 0:01:03]} 20. Bg3 {[%clk 0:00:34]}  Qd4+ {[%clk 0:00:47]} 21. Qxd4 {[%clk 0:00:29]}  Nxd4 {[%clk 0:00:48]} 22. Rd3 {[%clk 0:00:26]}  Bc5 {[%clk 0:00:46]} 23. Ke1 {[%clk 0:00:15]}  Nxc2+ {[%clk 0:00:36]} 24. Kd2 {[%clk 0:00:12]}  Nb4 {[%clk 0:00:35]} 25. e6 {[%clk 0:00:04]}  fxe6 {[%clk 0:00:20]} 26. Rc3 {[%clk 0:00:02]}  Nd5 {[%clk 0:00:19]} 27. Rxc5 {[%clk 0:00:02]}  Nxc5 {[%clk 0:00:19]} 28. Rc1 {[%clk 0:00:02]}  Nb3+ {[%clk 0:00:19]} 29. Kc2 {[%clk 0:00:02]}  Nxc1 {[%clk 0:00:20]} 30. Kxc1 {[%clk 0:00:03]}  b5 {[%clk 0:00:20]} 31. Bf3 {[%clk 0:00:03]}  Bb7 {[%clk 0:00:20]} 32. Nb6 {[%clk 0:00:02]}  Ke7 {[%clk 0:00:17]} 33. Nxd5+ {[%clk 0:00:01]}  Bxd5 {[%clk 0:00:18]} 34. Bxd5 {[%clk 0:00:02]}  exd5 {[%clk 0:00:19]} 35. Be5 {[%clk 0:00:02]}  Rc8+ {[%clk 0:00:19]} 36. Kb2 {[%clk 0:00:03]}  Rc4 {[%clk 0:00:20]} 37. Kb3 {[%clk 0:00:03]}  a5 {[%clk 0:00:20]} 38. Bc7 {[%clk 0:00:02]}  a4+ {[%clk 0:00:21]} 39. Ka3 {[%clk 0:00:03]}  b4+ {[%clk 0:00:22]} 40. Kxa4 {[%clk 0:00:03]}  Rxc7 {[%clk 0:00:22]} 41. Kxb4 {[%clk 0:00:03]}  Rc2 {[%clk 0:00:23]} 42. Kb3 {[%clk 0:00:02]}  Rxg2 {[%clk 0:00:24]} 43. h3 {[%clk 0:00:02]}  Rg3+ {[%clk 0:00:24]} 44. Kb4 {[%clk 0:00:03]}  Rxh3 {[%clk 0:00:25]} 45. Kc5 {[%clk 0:00:04]}  Re3 {[%clk 0:00:24]} 46. Kxd5 {[%clk 0:00:05]}  Re6 {[%clk 0:00:25]} 47. Kd4 {[%clk 0:00:05]}  g4 {[%clk 0:00:26]} 0-1


[Site "https://www.chess.com"]

[Event "Titled Tuesday Blitz August 17 2021"]
[White "Moskalenko, Alexander"]
[Black "Aldokhin, Ivan"]
[WhiteFideId "4155351"]
[BlackFideId "24115720"]
[WhiteElo "2495"]
[BlackElo "2306"]
[Result "1-0"]
[Round "02"]
[TimeControl "180+1"]
[Date "2021.08.17"]
[WhiteClock "0:00:33"]
[BlackClock "0:00:01"]

1. e4 {[%clk 0:03:00]}  c5 {[%clk 0:02:59]} 2. Nc3 {[%clk 0:03:01]}  e6 {[%clk 0:03:00]} 3. Nf3 {[%clk 0:02:58]}  a6 {[%clk 0:02:59]} 4. d4 {[%clk 0:02:58]}  cxd4 {[%clk 0:02:59]} 5. Nxd4 {[%clk 0:02:59]}  Qc7 {[%clk 0:03:00]} 6. g3 {[%clk 0:02:59]}  Nf6 {[%clk 0:03:00]} 7. Bg2 {[%clk 0:02:59]}  d6 {[%clk 0:03:00]} 8. O-O {[%clk 0:02:58]}  Be7 {[%clk 0:03:01]} 9. a4 {[%clk 0:02:54]}  Nc6 {[%clk 0:03:00]} 10. Re1 {[%clk 0:02:52]}  Bd7 {[%clk 0:02:56]} 11. Nxc6 {[%clk 0:02:45]}  Bxc6 {[%clk 0:02:32]} 12. b3 {[%clk 0:02:42]}  O-O {[%clk 0:02:25]} 13. Bb2 {[%clk 0:02:42]}  b5 {[%clk 0:02:19]} 14. axb5 {[%clk 0:02:41]}  axb5 {[%clk 0:02:19]} 15. Qd3 {[%clk 0:02:42]}  Qb7 {[%clk 0:02:13]} 16. f3 {[%clk 0:02:15]}  b4 {[%clk 0:01:42]} 17. Ne2 {[%clk 0:02:14]}  Bb5 {[%clk 0:01:40]} 18. Qd2 {[%clk 0:02:13]}  Bxe2 {[%clk 0:01:39]} 19. Qxe2 {[%clk 0:02:06]}  d5 {[%clk 0:01:24]} 20. Rxa8 {[%clk 0:02:06]}  Qxa8 {[%clk 0:01:20]} 21. f4 {[%clk 0:01:57]}  dxe4 {[%clk 0:01:11]} 22. Bxf6 {[%clk 0:01:46]}  Bxf6 {[%clk 0:01:06]} 23. Bxe4 {[%clk 0:01:47]}  Qa7+ {[%clk 0:01:00]} 24. Kg2 {[%clk 0:01:47]}  Rd8 {[%clk 0:01:00]} 25. Bd3 {[%clk 0:01:46]}  Qd4 {[%clk 0:00:56]} 26. Qf3 {[%clk 0:01:45]}  g6 {[%clk 0:00:54]} 27. Re4 {[%clk 0:01:44]}  Qc5 {[%clk 0:00:49]} 28. Rc4 {[%clk 0:01:44]}  Qd6 {[%clk 0:00:46]} 29. Qb7 {[%clk 0:01:38]}  Rd7 {[%clk 0:00:39]} 30. Qxb4 {[%clk 0:01:11]}  Qd5+ {[%clk 0:00:38]} 31. Be4 {[%clk 0:01:12]}  Qd1 {[%clk 0:00:25]} 32. Bd3 {[%clk 0:01:11]}  Rxd3 {[%clk 0:00:18]} 33. cxd3 {[%clk 0:01:11]}  Qe2+ {[%clk 0:00:17]} 34. Kg1 {[%clk 0:01:11]}  Be7 {[%clk 0:00:08]} 35. Qc3 {[%clk 0:01:03]}  Bf6 {[%clk 0:00:04]} 36. d4 {[%clk 0:01:00]}  Kg7 {[%clk 0:00:03]} 37. b4 {[%clk 0:00:53]}  Qd1+ {[%clk 0:00:03]} 38. Kf2 {[%clk 0:00:53]}  Qh5 {[%clk 0:00:03]} 39. h4 {[%clk 0:00:52]}  h6 {[%clk 0:00:03]} 40. Ke1 {[%clk 0:00:49]}  Qd5 {[%clk 0:00:02]} 41. Kd2 {[%clk 0:00:47]}  Qe4 {[%clk 0:00:02]} 42. Kc1 {[%clk 0:00:47]}  g5 {[%clk 0:00:02]} 43. hxg5 {[%clk 0:00:46]}  hxg5 {[%clk 0:00:03]} 44. fxg5 {[%clk 0:00:46]}  Bxg5+ {[%clk 0:00:03]} 45. Kb2 {[%clk 0:00:46]}  Qe2+ {[%clk 0:00:03]} 46. Kb3 {[%clk 0:00:47]}  Bd2 {[%clk 0:00:04]} 47. Qc2 {[%clk 0:00:44]}  Qf3+ {[%clk 0:00:04]} 48. Kb2 {[%clk 0:00:43]}  Be3 {[%clk 0:00:04]} 49. Qc3 {[%clk 0:00:37]}  Qe2+ {[%clk 0:00:03]} 50. Kb3 {[%clk 0:00:37]}  Qd1+ {[%clk 0:00:03]} 51. Qc2 {[%clk 0:00:37]}  Qf3 {[%clk 0:00:04]} 52. Qd3 {[%clk 0:00:36]}  Qf2 {[%clk 0:00:03]} 53. d5 {[%clk 0:00:34]}  exd5 {[%clk 0:00:03]} 54. Rg4+ {[%clk 0:00:35]}  Kf8 {[%clk 0:00:02]} 55. Qxd5 {[%clk 0:00:33]}  Qf1 {[%clk 0:00:01]} 56. Qd8# {[%clk 0:00:33]} 1-0


[Site "https://www.chess.com"]

[Event "Titled Tuesday Blitz August 17 2021"]
[White "Nazaretyan, Tigran"]
[Black "Bortnyk, Olexandr"]
[WhiteFideId "24162345"]
[BlackFideId "14120828"]
[WhiteElo "2167"]
[BlackElo "2723"]
[Result "0-1"]
[Round "02"]
[TimeControl "180+1"]
[Date "2021.08.17"]
[WhiteClock "0:00:47"]
[BlackClock "0:00:21"]

1. d4 {[%clk 0:03:00]}  f5 {[%clk 0:02:55]} 2. Nf3 {[%clk 0:02:59]}  Nf6 {[%clk 0:02:55]} 3. g3 {[%clk 0:02:59]}  d6 {[%clk 0:02:55]} 4. Bg2 {[%clk 0:03:00]}  g6 {[%clk 0:02:55]} 5. O-O {[%clk 0:03:00]}  Bg7 {[%clk 0:02:56]} 6. c4 {[%clk 0:03:01]}  O-O {[%clk 0:02:56]} 7. Nc3 {[%clk 0:03:01]}  c6 {[%clk 0:02:57]} 8. b3 {[%clk 0:02:57]}  a5 {[%clk 0:02:53]} 9. Ba3 {[%clk 0:02:44]}  Na6 {[%clk 0:02:52]} 10. Rc1 {[%clk 0:02:40]}  Kh8 {[%clk 0:02:16]} 11. Re1 {[%clk 0:02:29]}  Ne4 {[%clk 0:02:16]} 12. Qc2 {[%clk 0:02:22]}  Nb4 {[%clk 0:02:13]} 13. Qb1 {[%clk 0:02:11]}  Nxc3 {[%clk 0:02:00]} 14. Rxc3 {[%clk 0:02:11]}  f4 {[%clk 0:02:01]} 15. Rd1 {[%clk 0:02:04]}  Qb6 {[%clk 0:01:53]} 16. Bb2 {[%clk 0:01:59]}  Bf5 {[%clk 0:01:43]} 17. Qa1 {[%clk 0:01:57]}  a4 {[%clk 0:01:27]} 18. c5 {[%clk 0:01:45]}  Qb5 {[%clk 0:01:20]} 19. bxa4 {[%clk 0:01:36]}  Rxa4 {[%clk 0:00:59]} 20. Rb3 {[%clk 0:01:31]}  fxg3 {[%clk 0:00:36]} 21. hxg3 {[%clk 0:01:27]}  Bc2 {[%clk 0:00:25]} 22. d5 {[%clk 0:01:25]}  Bxb2 {[%clk 0:00:18]} 23. Qxb2+ {[%clk 0:01:24]}  Kg8 {[%clk 0:00:19]} 24. Rxb4 {[%clk 0:01:23]}  Rxb4 {[%clk 0:00:14]} 25. Qxc2 {[%clk 0:01:23]}  Rb2 {[%clk 0:00:14]} 26. Qd3 {[%clk 0:01:16]}  Qxd3 {[%clk 0:00:14]} 27. exd3 {[%clk 0:01:15]}  dxc5 {[%clk 0:00:14]} 28. dxc6 {[%clk 0:01:15]}  bxc6 {[%clk 0:00:15]} 29. Rd2 {[%clk 0:01:14]}  Rfb8 {[%clk 0:00:12]} 30. a4 {[%clk 0:01:11]}  Kg7 {[%clk 0:00:10]} 31. Rxb2 {[%clk 0:01:07]}  Rxb2 {[%clk 0:00:11]} 32. Ne5 {[%clk 0:01:08]}  Kf6 {[%clk 0:00:10]} 33. Nd7+ {[%clk 0:01:06]}  Ke6 {[%clk 0:00:11]} 34. Bxc6 {[%clk 0:01:07]}  Kd6 {[%clk 0:00:10]} 35. Bb5 {[%clk 0:01:06]}  Rxb5 {[%clk 0:00:11]} 36. axb5 {[%clk 0:01:06]}  Kxd7 {[%clk 0:00:12]} 37. Kg2 {[%clk 0:01:06]}  Kc7 {[%clk 0:00:12]} 38. Kf3 {[%clk 0:01:07]}  Kb6 {[%clk 0:00:13]} 39. Ke4 {[%clk 0:01:07]}  Kxb5 {[%clk 0:00:14]} 40. Kd5 {[%clk 0:01:07]}  Kb4 {[%clk 0:00:15]} 41. f4 {[%clk 0:01:06]}  h5 {[%clk 0:00:13]} 42. Ke6 {[%clk 0:00:58]}  Kc3 {[%clk 0:00:14]} 43. Kxe7 {[%clk 0:00:59]}  Kxd3 {[%clk 0:00:14]} 44. Kf6 {[%clk 0:01:00]}  c4 {[%clk 0:00:15]} 45. Kxg6 {[%clk 0:01:00]}  c3 {[%clk 0:00:16]} 46. f5 {[%clk 0:01:01]}  c2 {[%clk 0:00:17]} 47. f6 {[%clk 0:01:02]}  c1=Q {[%clk 0:00:18]} 48. f7 {[%clk 0:01:03]}  Qc5 {[%clk 0:00:15]} 49. Kg7 {[%clk 0:01:02]}  Qg5+ {[%clk 0:00:13]} 50. Kh7 {[%clk 0:01:01]}  Qf6 {[%clk 0:00:13]} 51. Kg8 {[%clk 0:01:01]}  Qg6+ {[%clk 0:00:14]} 52. Kf8 {[%clk 0:00:41]}  Qxg3 {[%clk 0:00:12]} 53. Ke7 {[%clk 0:00:41]}  Qe5+ {[%clk 0:00:12]} 54. Kd8 {[%clk 0:00:41]}  Qf6+ {[%clk 0:00:12]} 55. Ke8 {[%clk 0:00:41]}  h4 {[%clk 0:00:13]} 56. f8=Q {[%clk 0:00:41]}  Qxf8+ {[%clk 0:00:14]} 57. Kxf8 {[%clk 0:00:42]}  h3 {[%clk 0:00:15]} 58. Ke7 {[%clk 0:00:42]}  h2 {[%clk 0:00:15]} 59. Kf6 {[%clk 0:00:43]}  h1=Q {[%clk 0:00:16]} 60. Ke5 {[%clk 0:00:44]}  Qe4+ {[%clk 0:00:17]} 61. Kd6 {[%clk 0:00:44]}  Qf5 {[%clk 0:00:17]} 62. Kc7 {[%clk 0:00:44]}  Qe6 {[%clk 0:00:17]} 63. Kb7 {[%clk 0:00:44]}  Qd6 {[%clk 0:00:18]} 64. Ka8 {[%clk 0:00:45]}  Qd7 {[%clk 0:00:18]} 65. Kb8 {[%clk 0:00:46]}  Kc4 {[%clk 0:00:19]} 66. Ka8 {[%clk 0:00:47]}  Kb5 {[%clk 0:00:20]} 67. Kb8 {[%clk 0:00:47]}  Kb6 {[%clk 0:00:21]} 0-1


[Site "https://www.chess.com"]

[Event "Titled Tuesday Blitz August 17 2021"]
[White "Noritsyn, Nikolay"]
[Black "Rozhkov, Viacheslav"]
[WhiteFideId "2604922"]
[BlackFideId "4181484"]
[WhiteElo "2527"]
[BlackElo "2324"]
[Result "0-1"]
[Round "02"]
[TimeControl "180+1"]
[Date "2021.08.17"]
[WhiteClock "0:00:05"]
[BlackClock "0:00:09"]

1. d4 {[%clk 0:03:00]}  d5 {[%clk 0:02:58]} 2. c4 {[%clk 0:03:00]}  dxc4 {[%clk 0:02:58]} 3. Nf3 {[%clk 0:02:58]}  Nf6 {[%clk 0:02:57]} 4. e3 {[%clk 0:02:57]}  e6 {[%clk 0:02:57]} 5. Bxc4 {[%clk 0:02:56]}  a6 {[%clk 0:02:57]} 6. O-O {[%clk 0:02:55]}  c5 {[%clk 0:02:57]} 7. Be2 {[%clk 0:02:51]}  Nc6 {[%clk 0:02:49]} 8. Nc3 {[%clk 0:02:44]}  b5 {[%clk 0:02:47]} 9. Ne5 {[%clk 0:02:29]}  Nxe5 {[%clk 0:02:10]} 10. dxe5 {[%clk 0:02:28]}  Qxd1 {[%clk 0:02:11]} 11. Rxd1 {[%clk 0:02:28]}  Nd7 {[%clk 0:02:12]} 12. f4 {[%clk 0:02:18]}  Bb7 {[%clk 0:02:04]} 13. Kf2 {[%clk 0:02:07]}  Be7 {[%clk 0:01:02]} 14. Bf3 {[%clk 0:02:02]}  Bxf3 {[%clk 0:01:01]} 15. Kxf3 {[%clk 0:02:03]}  O-O-O {[%clk 0:01:01]} 16. Bd2 {[%clk 0:01:54]}  f6 {[%clk 0:00:48]} 17. exf6 {[%clk 0:01:48]}  gxf6 {[%clk 0:00:49]} 18. a4 {[%clk 0:01:47]}  b4 {[%clk 0:00:46]} 19. Ne4 {[%clk 0:01:46]}  f5 {[%clk 0:00:45]} 20. Nf2 {[%clk 0:01:45]}  Nf6 {[%clk 0:00:37]} 21. Be1 {[%clk 0:01:21]}  Kb7 {[%clk 0:00:32]} 22. h3 {[%clk 0:01:08]}  h5 {[%clk 0:00:30]} 23. b3 {[%clk 0:00:55]}  h4 {[%clk 0:00:30]} 24. Rac1 {[%clk 0:00:48]}  Rhg8 {[%clk 0:00:25]} 25. Rxd8 {[%clk 0:00:39]}  Rxd8 {[%clk 0:00:20]} 26. Rd1 {[%clk 0:00:25]}  Rg8 {[%clk 0:00:20]} 27. Nd3 {[%clk 0:00:25]}  Ne4 {[%clk 0:00:18]} 28. Ne5 {[%clk 0:00:24]}  Bd6 {[%clk 0:00:16]} 29. Bxh4 {[%clk 0:00:18]}  Bxe5 {[%clk 0:00:16]} 30. fxe5 {[%clk 0:00:19]}  Kc6 {[%clk 0:00:12]} 31. g4 {[%clk 0:00:17]}  c4 {[%clk 0:00:06]} 32. gxf5 {[%clk 0:00:14]}  exf5 {[%clk 0:00:06]} 33. bxc4 {[%clk 0:00:15]}  Kc5 {[%clk 0:00:06]} 34. e6 {[%clk 0:00:14]}  Kxc4 {[%clk 0:00:06]} 35. e7 {[%clk 0:00:14]}  b3 {[%clk 0:00:06]} 36. Rd8 {[%clk 0:00:13]}  b2 {[%clk 0:00:03]} 37. Rd1 {[%clk 0:00:05]}  Rb8 {[%clk 0:00:03]} 38. Rb1 {[%clk 0:00:04]}  Kc3 {[%clk 0:00:03]} 39. Kf4 {[%clk 0:00:02]}  Nd2 {[%clk 0:00:04]} 40. Rxb2 {[%clk 0:00:02]}  Kxb2 {[%clk 0:00:04]} 41. Kxf5 {[%clk 0:00:01]}  Nc4 {[%clk 0:00:05]} 42. Ke6 {[%clk 0:00:02]}  Nxe3 {[%clk 0:00:05]} 43. Kd7 {[%clk 0:00:02]}  Nd5 {[%clk 0:00:05]} 44. e8=Q {[%clk 0:00:02]}  Rxe8 {[%clk 0:00:06]} 45. Kxe8 {[%clk 0:00:03]}  Nf4 {[%clk 0:00:07]} 46. Kf7 {[%clk 0:00:03]}  Nxh3 {[%clk 0:00:06]} 47. Bd8 {[%clk 0:00:04]}  Kb3 {[%clk 0:00:07]} 48. a5 {[%clk 0:00:05]}  Kb4 {[%clk 0:00:07]} 49. Ke6 {[%clk 0:00:06]}  Kb5 {[%clk 0:00:08]} 50. Kd5 {[%clk 0:00:06]}  Nf4+ {[%clk 0:00:08]} 51. Kd4 {[%clk 0:00:05]}  Ne6+ {[%clk 0:00:09]} 0-1


[Site "https://www.chess.com"]